Workbook

Sheet hisse
A1: İşlem | B1: TARİH | C1: ADET | D1: FİYAT | E1: TUTAR | F1: Birim Maliyet | G1: Toplam Maliyet | H1: Birim Kar/Zarar | I1: Toplam Kar/Zarar
A2: A | B2: 2020-03-06 | C2: 81448 | D2: 4.7457 | E2: =+C2*D2 -> 386527.7736
A3: S | B3: 2020-03-17 | C3: 20385 | D3: 4.7525 | E3: =+C3*D3 -> 96879.7125 | F3: =birim_maliyet($A$2:A2,$D$2:D2,$C$2:C2,C3) -> 4.7457 | G3: =+F3*C3 -> 96741.0945 | H3: =(D3-F3) -> 0.0068 | I3: =+H3*C3 -> 138.618
A4: A | B4: 2020-03-31 | C4: 710760 | D4: 4.7614 | E4: =+C4*D4 -> 3384212.664
A5: S | B5: 2020-04-02 | C5: 61448 | D5: 4.7627 | E5: =+C5*D5 -> 292658.3896 | F5: =birim_maliyet($A$2:A4,$D$2:D4,$C$2:C4,C5) -> 4.745798368 | G5: =+F5*C5 -> 291619.8181 | H5: =(D5-F5) -> 0.01690163227 | I5: =+H5*C5 -> 1038.5715
A6: S | B6: 2020-04-02 | C6: 214323 | D6: 4.7627 | E6: =+C6*D6 -> 1020756.152 | F6: =birim_maliyet($A$2:A5,$D$2:D5,$C$2:C5,C6) -> 4.7614 | G6: =+F6*C6 -> 1020477.532 | H6: =(D6-F6) -> 0.0013 | I6: =+H6*C6 -> 278.6199
A7: S | B7: 2020-04-03 | C7: 335385 | D7: 4.7634 | E7: =+C7*D7 -> 1597572.909 | F7: =birim_maliyet($A$2:A6,$D$2:D6,$C$2:C6,C7) -> 4.7614 | G7: =+F7*C7 -> 1596902.139 | H7: =(D7-F7) -> 0.002 | I7: =+H7*C7 -> 670.77
A8: A | B8: 2020-04-07 | C8: 19385 | D8: 4.7662 | E8: =+C8*D8 -> 92392.787
A9: S | B9: 2020-04-15 | C9: 15385 | D9: 4.7717 | E9: =+C9*D9 -> 73412.6045 | F9: =birim_maliyet($A$2:A8,$D$2:D8,$C$2:C8,C9) -> 4.7614 | G9: =+F9*C9 -> 73254.139 | H9: =(D9-F9) -> 0.0103 | I9: =+H9*C9 -> 158.4655
A10: A | B10: 2020-04-30 | C10: 584035 | D10: 4.7819 | E10: =+C10*D10 -> 2792796.967
A11: S | B11: 2020-05-01 | C11: 146823 | D11: 4.7826 | E11: =+C11*D11 -> 702195.6798 | F11: =birim_maliyet($A$2:A10,$D$2:D10,$C$2:C10,C11) -> 4.761450379 | G11: =+F11*C11 -> 699090.429 | H11: =(D11-F11) -> 0.02114962097 | I11: =+H11*C11 -> 3105.2508
A12: S | B12: 2020-05-01 | C12: 19385 | D12: 4.7826 | E12: =+C12*D12 -> 92710.701 | F12: =birim_maliyet($A$2:A11,$D$2:D11,$C$2:C11,C12) -> 4.767448063 | G12: =+F12*C12 -> 92416.9807 | H12: =(D12-F12) -> 0.01515193706 | I12: =+H12*C12 -> 293.7203
A13: S | B13: 2020-05-01 | C13: 165948 | D13: 4.7826 | E13: =+C13*D13 -> 793662.9048 | F13: =birim_maliyet($A$2:A12,$D$2:D12,$C$2:C12,C13) -> 4.7819 | G13: =+F13*C13 -> 793546.7412 | H13: =(D13-F13) -> 0.0007 | I13: =+H13*C13 -> 116.1636
A14: S | B14: 2020-05-02 | C14: 154385 | D14: 4.7834 | E14: =+C14*D14 -> 738485.209 | F14: =birim_maliyet($A$2:A13,$D$2:D13,$C$2:C13,C14) -> 4.7819 | G14: =+F14*C14 -> 738253.6315 | H14: =(D14-F14) -> 0.0015 | I14: =+H14*C14 -> 231.5775
A15: A | B15: 2020-05-27 | C15: 694540 | D15: 4.8016 | E15: =+C15*D15 -> 3334903.264
A16: S | B16: 2020-05-29 | C16: 264473 | D16: 4.803 | E16: =+C16*D16 -> 1270263.819 | F16: =birim_maliyet($A$2:A15,$D$2:D15,$C$2:C15,C16) -> 4.782072216 | G16: =+F16*C16 -> 1264728.985 | H16: =(D16-F16) -> 0.02092778431 | I16: =+H16*C16 -> 5534.8339
A17: S | B17: 2020-05-29 | C17: 52924 | D17: 4.803 | E17: =+C17*D17 -> 254193.972 | F17: =birim_maliyet($A$2:A16,$D$2:D16,$C$2:C16,C17) -> 4.8016 | G17: =+F17*C17 -> 254119.8784 | H17: =(D17-F17) -> 0.0014 | I17: =+H17*C17 -> 74.0936
A18: S | B18: 2020-05-30 | C18: 178555 | D18: 4.8038 | E18: =+C18*D18 -> 857742.509 | F18: =birim_maliyet($A$2:A17,$D$2:D17,$C$2:C17,C18) -> 4.8016 | G18: =+F18*C18 -> 857349.688 | H18: =(D18-F18) -> 0.0022 | I18: =+H18*C18 -> 392.821

Sheet Depo
A1: Hareket | B1: Adet | C1: Birim Maliyet | D1: Toplam Tutar | F1: Birim Maliyet | G1: Toplam Maliyet
A2: A | B2: 60 | C2: 3 | D2: =IF(A2="A",-B2*C2,B2*C2) -> -180
A3: S | B3: 43 | C3: =birim_maliyet($A$2:A2,$C$2:C2,$B$2:B2,B3) -> 3 | D3: =IF(A3="A",-B3*C3,B3*C3) -> 129 | F3: =birim_maliyet($A$2:A2,$C$2:C2,$B$2:B2,B3) -> 3 | G3: =+B3*F3 -> 129
A4: A | B4: 20 | C4: 3.05 | D4: =IF(A4="A",-B4*C4,B4*C4) -> -61
A5: S | B5: 13 | C5: =birim_maliyet($A$2:A4,$C$2:C4,$B$2:B4,B5) -> 3 | D5: =IF(A5="A",-B5*C5,B5*C5) -> 39 | F5: =birim_maliyet($A$2:A4,$C$2:C4,$B$2:B4,B5) -> 3 | G5: =+B5*F5 -> 39
A6: A | B6: 50 | C6: 3.15 | D6: =IF(A6="A",-B6*C6,B6*C6) -> -157.5
A7: S | B7: 42 | C7: =birim_maliyet($A$2:A6,$C$2:C6,$B$2:B6,B7) -> 3.088095238 | D7: =IF(A7="A",-B7*C7,B7*C7) -> 129.7 | F7: =birim_maliyet($A$2:A6,$C$2:C6,$B$2:B6,B7) -> 3.088095238 | G7: =+B7*F7 -> 129.7
A8: A | B8: 100 | C8: 3.25 | D8: =IF(A8="A",-B8*C8,B8*C8) -> -325
A9: S | B9: 31 | C9: =birim_maliyet($A$2:A8,$C$2:C8,$B$2:B8,B9) -> 3.15 | D9: =IF(A9="A",-B9*C9,B9*C9) -> 97.65 | F9: =birim_maliyet($A$2:A8,$C$2:C8,$B$2:B8,B9) -> 3.15 | G9: =+B9*F9 -> 97.65
A10: A | B10: 200 | C10: 3.35 | D10: =IF(A10="A",-B10*C10,B10*C10) -> -670
A11: S | B11: 145 | C11: =birim_maliyet($A$2:A10,$C$2:C10,$B$2:B10,B11) -> 3.279655172 | D11: =IF(A11="A",-B11*C11,B11*C11) -> 475.55 | F11: =birim_maliyet($A$2:A10,$C$2:C10,$B$2:B10,B11) -> 3.279655172 | G11: =+B11*F11 -> 475.55
A12: A | B12: 70 | C12: 3.45 | D12: =IF(A12="A",-B12*C12,B12*C12) -> -241.5
A13: S | B13: 55 | C13: =birim_maliyet($A$2:A12,$C$2:C12,$B$2:B12,B13) -> 3.35 | D13: =IF(A13="A",-B13*C13,B13*C13) -> 184.25 | F13: =birim_maliyet($A$2:A12,$C$2:C12,$B$2:B12,B13) -> 3.35 | G13: =+B13*F13 -> 184.25
A14: A | B14: 90 | C14: 3.55 | D14: =IF(A14="A",-B14*C14,B14*C14) -> -319.5
A15: S | B15: 59 | C15: =birim_maliyet($A$2:A14,$C$2:C14,$B$2:B14,B15) -> 3.35 | D15: =IF(A15="A",-B15*C15,B15*C15) -> 197.65 | F15: =birim_maliyet($A$2:A14,$C$2:C14,$B$2:B14,B15) -> 3.35 | G15: =+B15*F15 -> 197.65
A16: A | B16: 110 | C16: 3.65 | D16: =IF(A16="A",-B16*C16,B16*C16) -> -401.5
A17: S | B17: 24 | C17: =birim_maliyet($A$2:A16,$C$2:C16,$B$2:B16,B17) -> 3.35 | D17: =IF(A17="A",-B17*C17,B17*C17) -> 80.4 | F17: =birim_maliyet($A$2:A16,$C$2:C16,$B$2:B16,B17) -> 3.35 | G17: =+B17*F17 -> 80.4
A18: A | B18: 130 | C18: 3.75 | D18: =IF(A18="A",-B18*C18,B18*C18) -> -487.5
A19: S | B19: 43 | C19: =birim_maliyet($A$2:A18,$C$2:C18,$B$2:B18,B19) -> 3.408139535 | D19: =IF(A19="A",-B19*C19,B19*C19) -> 146.55 | F19: =birim_maliyet($A$2:A18,$C$2:C18,$B$2:B18,B19) -> 3.408139535 | G19: =+B19*F19 -> 146.55
A20: A | B20: 150 | C20: 3 | D20: =IF(A20="A",-B20*C20,B20*C20) -> -450
A21: S | B21: 38 | C21: =birim_maliyet($A$2:A20,$C$2:C20,$B$2:B20,B21) -> 3.45 | D21: =IF(A21="A",-B21*C21,B21*C21) -> 131.1 | F21: =birim_maliyet($A$2:A20,$C$2:C20,$B$2:B20,B21) -> 3.45 | G21: =+B21*F21 -> 131.1

Sheet Ürün Adları Dahil FIFO
A1: Ürün Adı | B1: Hareket | C1: Adet | D1: Birim Maliyet | E1: Toplam Tutar
A2: Patates | B2: A | C2: 60 | D2: 100 | E2: =IF(B2="A",C2*D2,C2*D2) -> 6000
A3: Patates | B3: A | C3: 60 | D3: 120 | E3: =IF(B3="A",C3*D3,C3*D3) -> 7200
A4: Soğan | B4: A | C4: 100 | D4: 3 | E4: =IF(B4="A",C4*D4,C4*D4) -> 300
A5: Patates | B5: S | C5: 120 | D5: =birim_maliyet_urun_grup($B$2:B4,$D$2:D4,$C$2:C4,C5,$A$2:A4,A5) -> 110 | E5: =IF(B5="A",C5*D5,C5*D5) -> 13200
A6: Soğan | B6: A | C6: 100 | D6: 2 | E6: =IF(B6="A",C6*D6,C6*D6) -> 200
A7: Soğan | B7: S | C7: 200 | D7: =birim_maliyet_urun_grup($B$2:B6,$D$2:D6,$C$2:C6,C7,$A$2:A6,A7) -> 2.5 | E7: =IF(B7="A",C7*D7,C7*D7) -> 500
A8: Armut | B8: A | C8: 100 | D8: 50 | E8: =IF(B8="A",C8*D8,C8*D8) -> 5000
A9: Soğan | B9: A | C9: 300 | D9: 3.2 | E9: =IF(B9="A",C9*D9,C9*D9) -> 960
A10: Armut | B10: A | C10: 10 | D10: 45 | E10: =IF(B10="A",C10*D10,C10*D10) -> 450
A11: Armut | B11: S | C11: 105 | D11: =birim_maliyet_urun_grup($B$2:B10,$D$2:D10,$C$2:C10,C11,$A$2:A10,A11) -> 49.76190476 | E11: =IF(B11="A",C11*D11,C11*D11) -> 5225
A12: Soğan | B12: A | C12: 70 | D12: 3.45 | E12: =IF(B12="A",C12*D12,C12*D12) -> 241.5
A13: Soğan | B13: S | C13: 350 | D13: =birim_maliyet_urun_grup($B$2:B12,$D$2:D12,$C$2:C12,C13,$A$2:A12,A13) -> 3.235714286 | E13: =IF(B13="A",C13*D13,C13*D13) -> 1132.5
A14: Sarımsak | B14: A | C14: 50 | D14: 1.7 | E14: =IF(B14="A",C14*D14,C14*D14) -> 85
A15: Sarımsak | B15: S | C15: 45 | D15: =birim_maliyet_urun_grup($B$2:B14,$D$2:D14,$C$2:C14,C15,$A$2:A14,A15) -> 1.7 | E15: =IF(B15="A",C15*D15,C15*D15) -> 76.5
A16: Sarımsak | B16: A | C16: 110 | D16: 1.75 | E16: =IF(B16="A",C16*D16,C16*D16) -> 192.5
A17: Sarımsak | B17: S | C17: 24 | D17: =birim_maliyet_urun_grup($B$2:B16,$D$2:D16,$C$2:C16,C17,$A$2:A16,A17) -> 1.739583333 | E17: =IF(B17="A",C17*D17,C17*D17) -> 41.75
A18: Soğan | B18: A | C18: 130 | D18: 3.75 | E18: =IF(B18="A",C18*D18,C18*D18) -> 487.5
A19: Armut | B19: S | C19: 5 | D19: =birim_maliyet_urun_grup($B$2:B18,$D$2:D18,$C$2:C18,C19,$A$2:A18,A19) -> 45 | E19: =IF(B19="A",C19*D19,C19*D19) -> 225
A20: Soğan | B20: A | C20: 150 | D20: 3 | E20: =IF(B20="A",C20*D20,C20*D20) -> 450
A21: Soğan | B21: S | C21: 21 | D21: =birim_maliyet_urun_grup($B$2:B20,$D$2:D20,$C$2:C20,C21,$A$2:A20,A21) -> 3.464285714 | E21: =IF(B21="A",C21*D21,C21*D21) -> 72.75
